[Event "Masterklassen 2025"]
[Site "Uppsala, Sweden"]
[Date "2025.07.03"]
[Round "6.16"]
[White "Mardell, Jimmy"]
[Black "Bjorkman, Filip"]
[Result "1-0"]
[TimeControl "90 min for 40 move + 30 min with an increment of 30 sec starting move 1"]
[WhiteFideId "1705610"]
[BlackFideId "1734970"]
[WhiteElo "2227"]
[BlackElo "2113"]

1. e4 {[%clk 01:30:56]} {[%emt 00:00:03]} c5 {[%clk 01:23:05]} {[%emt
00:07:45]} 2. Nf3 {[%clk 01:31:19]} {[%emt 00:00:18]} Nc6 {[%clk 01:23:30]}
{[%emt 00:00:05]} 3. d4 {[%clk 01:31:42]} {[%emt 00:00:06]} cxd4 {[%clk
01:23:56]} {[%emt 00:00:05]} 4. Nxd4 {[%clk 01:32:07]} {[%emt 00:00:05]} Nf6
{[%clk 01:24:19]} {[%emt 00:00:06]} 5. Nc3 {[%clk 01:32:32]} {[%emt 00:00:06]}
e5 {[%clk 01:24:45]} {[%emt 00:00:05]} 6. Ndb5 {[%clk 01:32:50]} {[%emt
00:00:11]} d6 {[%clk 01:25:09]} {[%emt 00:00:06]} 7. Bg5 {[%clk 01:33:01]}
{[%emt 00:00:18]} a6 {[%clk 01:25:34]} {[%emt 00:00:06]} 8. Na3 {[%clk
01:33:26]} {[%emt 00:00:05]} b5 {[%clk 01:26:00]} {[%emt 00:00:05]} 9. Nab1
{[%clk 01:33:37]} {[%emt 00:00:19]} Be7 {[%clk 01:25:59]} {[%emt 00:00:30]} 10.
Bxf6 {[%clk 01:33:54]} {[%emt 00:00:13]} Bxf6 {[%clk 01:26:23]} {[%emt
00:00:07]} 11. a4 {[%clk 01:34:13]} {[%emt 00:00:10]} b4 {[%clk 01:26:11]}
{[%emt 00:00:42]} 12. Nd5 {[%clk 01:34:37]} {[%emt 00:00:06]} O-O {[%clk
01:21:02]} {[%emt 00:05:39]} 13. Bc4 {[%clk 01:34:26]} {[%emt 00:00:41]} Be6
{[%clk 01:20:47]} {[%emt 00:00:44]} 14. O-O {[%clk 01:33:51]} {[%emt 00:01:06]}
Bg5 {[%clk 01:13:22]} {[%emt 00:07:56]} 15. Qd3 {[%clk 01:31:59]} {[%emt
00:02:21]} a5 {[%clk 01:03:21]} {[%emt 00:10:31]} 16. c3 {[%clk 01:27:48]}
{[%emt 00:04:41]} Rb8 {[%clk 00:56:28]} {[%emt 00:07:23]} 17. Bb5 {[%clk
01:10:34]} {[%emt 00:17:44]} Ne7 {[%clk 00:25:27]} {[%emt 00:31:30]} 18. Nxe7+
{[%clk 00:58:07]} {[%emt 00:12:57]} Bxe7 {[%clk 00:24:03]} {[%emt 00:01:55]} 19.
cxb4 {[%clk 00:58:28]} {[%emt 00:00:09]} axb4 {[%clk 00:24:17]} {[%emt
00:00:16]} 20. Bc4 {[%clk 00:52:14]} {[%emt 00:06:44]} Qc7 {[%clk 00:23:31]}
{[%emt 00:01:17]} 21. Nd2 {[%clk 00:51:25]} {[%emt 00:01:18]} Bg5 {[%clk
00:23:01]} {[%emt 00:00:59]} 22. b3 {[%clk 00:45:36]} {[%emt 00:06:19]} Rfd8
{[%clk 00:22:19]} {[%emt 00:01:11]} 23. Rac1 {[%clk 00:44:02]} {[%emt
00:02:06]} Qb7 {[%clk 00:20:05]} {[%emt 00:02:44]} 24. Bd5 {[%clk 00:40:24]}
{[%emt 00:04:08]} Bxd5 {[%clk 00:17:55]} {[%emt 00:02:40]} 25. exd5 {[%clk
00:39:53]} {[%emt 00:01:01]} Bxd2 {[%clk 00:13:17]} {[%emt 00:05:08]} 26. Qxd2
{[%clk 00:39:58]} {[%emt 00:00:25]} Rdc8 {[%clk 00:13:40]} {[%emt 00:00:07]} 27.
h3 {[%clk 00:35:05]} {[%emt 00:05:23]} h6 {[%clk 00:13:04]} {[%emt 00:01:05]}
28. Rfd1 {[%clk 00:24:14]} {[%emt 00:11:22]} Qb6 {[%clk 00:02:57]} {[%emt
00:10:37]} 29. Rxc8+ {[%clk 00:12:49]} {[%emt 00:11:55]} Rxc8 {[%clk 00:03:18]}
{[%emt 00:00:09]} 30. Rc1 {[%clk 00:13:15]} {[%emt 00:00:04]} Rc5 {[%clk
00:03:15]} {[%emt 00:00:33]} 31. Qe3 {[%clk 00:12:19]} {[%emt 00:01:25]} Rxc1+
{[%clk 00:00:57]} {[%emt 00:02:48]} 32. Qxc1 {[%clk 00:12:45]} {[%emt
00:00:05]} Qd4 {[%clk 00:01:16]} {[%emt 00:00:10]} 33. a5 {[%clk 00:06:02]}
{[%emt 00:07:13]} Qxd5 {[%clk 00:01:23]} {[%emt 00:00:24]} 34. a6 {[%clk
00:05:55]} {[%emt 00:00:36]} Qa8 {[%clk 00:01:14]} {[%emt 00:00:40]} 35. Qc4
{[%clk 00:05:32]} {[%emt 00:00:53]} d5 {[%clk 00:01:16]} {[%emt 00:00:28]} 36.
Qb5 {[%clk 00:05:52]} {[%emt 00:00:09]} Qc8 {[%clk 00:00:36]} {[%emt 00:01:12]}
37. Kh2 {[%clk 00:03:29]} {[%emt 00:02:52]} Kh7 {[%clk 00:00:46]} {[%emt
00:00:20]} 38. a7 {[%clk 00:03:08]} {[%emt 00:00:51]} Qf5 {[%clk 00:00:36]}
{[%emt 00:00:40]} 39. a8=Q {[%clk 00:02:40]} {[%emt 00:00:59]} Qxf2 {[%clk
00:01:00]} {[%emt 00:00:05]} 40. Qxb4 {[%clk 00:02:21]} {[%emt 00:00:49]} e4
{[%clk 00:01:22]} {[%emt 00:00:08]} 41. Qa1 {[%clk 00:00:50]} {[%emt 00:02:01]}
1-0

[Event "Masterklassen 2025"]
[Site "Uppsala, Sweden"]
[Date "2025.07.04"]
[Round "7.1"]
[White "Crevatin, Leo"]
[Black "Cederstam, Carl"]
[Result "1/2-1/2"]
[TimeControl "90 min for 40 move + 30 min with an increment of 30 sec starting move 1"]
[WhiteTitle "FM"]
[BlackTitle "FM"]
[WhiteFideId "1726307"]
[BlackFideId "1713329"]
[WhiteElo "2248"]
[BlackElo "2316"]

1. d4 {[%clk 01:28:57]} {[%emt 00:02:02]} Nf6 {[%clk 01:30:12]} {[%emt
00:00:48]} 2. c4 {[%clk 01:29:16]} {[%emt 00:00:12]} e6 {[%clk 01:29:51]}
{[%emt 00:00:50]} 3. Nf3 {[%clk 01:29:40]} {[%emt 00:00:06]} d5 {[%clk
01:30:14]} {[%emt 00:00:06]} 4. g3 {[%clk 01:30:09]} {[%emt 00:00:03]} Be7
{[%clk 01:30:20]} {[%emt 00:00:24]} 5. Bg2 {[%clk 01:30:08]} {[%emt 00:00:31]}
O-O {[%clk 01:30:43]} {[%emt 00:00:07]} 6. O-O {[%clk 01:29:38]} {[%emt
00:01:00]} dxc4 {[%clk 01:30:58]} {[%emt 00:00:15]} 7. Qc2 {[%clk 01:29:20]}
{[%emt 00:00:47]} a6 {[%clk 01:31:13]} {[%emt 00:00:15]} 8. a4 {[%clk
01:29:49]} {[%emt 00:00:02]} Bd7 {[%clk 01:31:35]} {[%emt 00:00:08]} 9. Qxc4
{[%clk 01:28:40]} {[%emt 00:01:39]} Bc6 {[%clk 01:28:39]} {[%emt 00:03:25]} 10.
Bf4 {[%clk 01:29:03]} {[%emt 00:00:06]} Bd6 {[%clk 01:28:47]} {[%emt 00:00:22]}
1/2-1/2

[Event "Masterklassen 2025"]
[Site "Uppsala, Sweden"]
[Date "2025.07.04"]
[Round "7.2"]
[White "Mashhadi, Peyman"]
[Black "Walinder, Lars"]
[Result "0-1"]
[TimeControl "90 min for 40 move + 30 min with an increment of 30 sec starting move 1"]
[BlackTitle "FM"]
[WhiteFideId "1768581"]
[BlackFideId "1707329"]
[WhiteElo "2132"]
[BlackElo "2181"]

1. d4 {[%clk 01:30:53]} {[%emt 00:00:06]} Nf6 {[%clk 01:30:42]} {[%emt
00:00:19]} 2. c4 {[%clk 01:30:56]} {[%emt 00:00:26]} e6 {[%clk 01:31:04]}
{[%emt 00:00:09]} 3. g3 {[%clk 01:30:52]} {[%emt 00:00:34]} Bb4+ {[%clk
01:29:56]} {[%emt 00:01:38]} 4. Nd2 {[%clk 01:29:27]} {[%emt 00:01:55]} c5
{[%clk 01:28:58]} {[%emt 00:01:28]} 5. a3 {[%clk 01:28:24]} {[%emt 00:01:33]}
Bxd2+ {[%clk 01:29:14]} {[%emt 00:00:14]} 6. Qxd2 {[%clk 01:23:10]} {[%emt
00:05:44]} cxd4 {[%clk 01:29:18]} {[%emt 00:00:26]} 7. Qxd4 {[%clk 01:21:55]}
{[%emt 00:01:45]} Nc6 {[%clk 01:25:18]} {[%emt 00:04:30]} 8. Qh4 {[%clk
01:20:49]} {[%emt 00:01:36]} d5 {[%clk 01:16:45]} {[%emt 00:09:03]} 9. Bg2
{[%clk 01:19:42]} {[%emt 00:01:37]} O-O {[%clk 01:11:18]} {[%emt 00:05:57]} 10.
Nf3 {[%clk 01:16:42]} {[%emt 00:03:30]} d4 {[%clk 00:52:34]} {[%emt 00:19:15]}
11. O-O {[%clk 01:08:29]} {[%emt 00:08:42]} e5 {[%clk 00:52:45]} {[%emt
00:00:19]} 12. b4 {[%clk 01:05:38]} {[%emt 00:03:22]} Re8 {[%clk 00:50:35]}
{[%emt 00:02:39]} 13. Ng5 {[%clk 00:52:37]} {[%emt 00:13:31]} Bf5 {[%clk
00:47:27]} {[%emt 00:03:39]} 14. g4 {[%clk 00:43:57]} {[%emt 00:09:09]} Bg6
{[%clk 00:44:28]} {[%emt 00:03:29]} 15. Qg3 {[%clk 00:34:59]} {[%emt 00:09:28]}
Qd7 {[%clk 00:29:02]} {[%emt 00:15:57]} 16. Bd2 {[%clk 00:27:06]} {[%emt
00:08:22]} e4 {[%clk 00:26:39]} {[%emt 00:02:53]} 17. f4 {[%clk 00:21:56]}
{[%emt 00:05:40]} exf3 {[%clk 00:20:57]} {[%emt 00:06:13]} 18. exf3 {[%clk
00:21:37]} {[%emt 00:00:48]} Re2 {[%clk 00:16:09]} {[%emt 00:05:18]} 19. Rf2
{[%clk 00:21:08]} {[%emt 00:00:59]} Rae8 {[%clk 00:15:46]} {[%emt 00:00:53]} 20.
Bf1 {[%clk 00:20:59]} {[%emt 00:00:38]} d3 {[%clk 00:10:39]} {[%emt 00:05:38]}
21. Bxe2 {[%clk 00:16:44]} {[%emt 00:04:45]} dxe2 {[%clk 00:11:03]} {[%emt
00:00:06]} 22. Qf4 {[%clk 00:17:07]} {[%emt 00:00:07]} Nd4 {[%clk 00:08:37]}
{[%emt 00:02:56]} 23. Re1 {[%clk 00:11:33]} {[%emt 00:06:03]} Bd3 {[%clk
00:05:52]} {[%emt 00:03:16]} 24. Be3 {[%clk 00:07:34]} {[%emt 00:04:29]} Nc2
{[%clk 00:06:13]} {[%emt 00:00:10]} 25. Bd2 {[%clk 00:04:33]} {[%emt 00:03:30]}
Nxe1 {[%clk 00:06:29]} {[%emt 00:00:14]} 26. Bxe1 {[%clk 00:05:01]} {[%emt
00:00:02]} Bc2 {[%clk 00:04:24]} {[%emt 00:02:35]} 27. Qg3 {[%clk 00:04:35]}
{[%emt 00:00:55]} Qd1 {[%clk 00:04:20]} {[%emt 00:00:35]} 28. Rg2 {[%clk
00:05:03]} {[%emt 00:00:02]} h6 {[%clk 00:02:49]} {[%emt 00:02:01]} 29. Nh3
{[%clk 00:05:11]} {[%emt 00:00:22]} Re3 {[%clk 00:01:57]} {[%emt 00:01:22]} 30.
Kh1 {[%clk 00:03:49]} {[%emt 00:01:52]} Rxf3 {[%clk 00:01:20]} {[%emt
00:01:07]} 31. Qxf3 {[%clk 00:02:41]} {[%emt 00:01:38]} Qxe1+ {[%clk 00:01:39]}
{[%emt 00:00:11]} 32. Ng1 {[%clk 00:02:06]} {[%emt 00:01:05]} Be4 {[%clk
00:01:01]} {[%emt 00:01:07]} 33. Qxe2 {[%clk 00:02:25]} {[%emt 00:00:12]} Qxe2
{[%clk 00:01:02]} {[%emt 00:00:30]} 34. Nxe2 {[%clk 00:02:45]} {[%emt
00:00:08]} Nxg4 {[%clk 00:01:08]} {[%emt 00:00:25]} 35. Nc3 {[%clk 00:02:08]}
{[%emt 00:01:07]} Bxg2+ {[%clk 00:01:26]} {[%emt 00:00:13]} 36. Kxg2 {[%clk
00:02:35]} {[%emt 00:00:02]} Ne3+ {[%clk 00:01:53]} {[%emt 00:00:03]} 37. Kf3
{[%clk 00:02:32]} {[%emt 00:00:32]} Nxc4 {[%clk 00:02:18]} {[%emt 00:00:05]} 38.
a4 {[%clk 00:02:04]} {[%emt 00:00:58]} Kf8 {[%clk 00:02:32]} {[%emt 00:00:17]}
39. Nb5 {[%clk 00:01:16]} {[%emt 00:01:18]} a6 {[%clk 00:02:12]} {[%emt
00:00:51]} 40. Nd4 {[%clk 00:00:43]} {[%emt 00:01:02]} Nb6 {[%clk 00:01:35]}
{[%emt 00:01:07]} 41. a5 {[%clk 00:00:46]} {[%emt 00:00:27]} Nd5 {[%clk
00:01:42]} {[%emt 00:00:22]} 42. b5 {[%clk 00:30:27]} {[%emt 00:00:50]} axb5
{[%clk 00:31:52]} {[%emt 00:00:20]} 43. Nxb5 {[%clk 00:30:31]} {[%emt
00:00:26]} Ke7 {[%clk 00:27:34]} {[%emt 00:04:47]} 44. Ke4 {[%clk 00:30:22]}
{[%emt 00:00:40]} Nb4 {[%clk 00:27:10]} {[%emt 00:00:54]} 45. Nd4 {[%clk
00:30:11]} {[%emt 00:00:40]} g6 {[%clk 00:27:11]} {[%emt 00:00:29]} 46. Ke5
{[%clk 00:28:34]} {[%emt 00:02:08]} f6+ {[%clk 00:27:12]} {[%emt 00:00:29]} 47.
Ke4 {[%clk 00:28:47]} {[%emt 00:00:17]} Kd6 {[%clk 00:26:14]} {[%emt 00:01:28]}
48. h4 {[%clk 00:28:55]} {[%emt 00:00:21]} Nc6 {[%clk 00:25:38]} {[%emt
00:01:07]} 49. Nb3 {[%clk 00:27:27]} {[%emt 00:01:57]} h5 {[%clk 00:19:59]}
{[%emt 00:06:09]} 50. Kd3 {[%clk 00:22:01]} {[%emt 00:05:56]} Kd5 {[%clk
00:19:54]} {[%emt 00:00:35]} 51. Ke3 {[%clk 00:22:05]} {[%emt 00:00:27]} g5
{[%clk 00:18:10]} {[%emt 00:02:14]} 52. Nd2 {[%clk 00:20:14]} {[%emt 00:02:22]}
gxh4 {[%clk 00:14:13]} {[%emt 00:04:27]} 53. Nb3 {[%clk 00:14:08]} {[%emt
00:06:36]} Ke5 {[%clk 00:13:30]} {[%emt 00:01:13]} 54. Kf2 {[%clk 00:13:37]}
{[%emt 00:01:00]} Kf4 {[%clk 00:13:38]} {[%emt 00:00:22]} 55. Kg2 {[%clk
00:12:43]} {[%emt 00:01:23]} Kg4 {[%clk 00:13:53]} {[%emt 00:00:16]} 56. Kh2
{[%clk 00:12:32]} {[%emt 00:00:41]} f5 {[%clk 00:13:40]} {[%emt 00:00:43]} 57.
Kg2 {[%clk 00:11:21]} {[%emt 00:01:41]} h3+ {[%clk 00:12:41]} {[%emt 00:01:30]}
58. Kf2 {[%clk 00:11:05]} {[%emt 00:00:44]} f4 {[%clk 00:12:25]} {[%emt
00:00:47]} 59. Nd2 {[%clk 00:11:25]} {[%emt 00:00:10]} Nxa5 {[%clk 00:12:21]}
{[%emt 00:00:35]} 60. Nf3 {[%clk 00:10:41]} {[%emt 00:01:13]} b5 {[%clk
00:12:29]} {[%emt 00:00:21]} 61. Nh2+ {[%clk 00:09:25]} {[%emt 00:01:46]} Kf5
{[%clk 00:12:41]} {[%emt 00:00:18]} 62. Kf3 {[%clk 00:09:41]} {[%emt 00:00:15]}
Nc4 {[%clk 00:12:55]} {[%emt 00:00:16]} 63. Nf1 {[%clk 00:09:58]} {[%emt
00:00:13]} b4 {[%clk 00:12:41]} {[%emt 00:00:44]} 0-1

[Event "Masterklassen 2025"]
[Site "Uppsala, Sweden"]
[Date "2025.07.04"]
[Round "7.3"]
[White "Muntean, Victor"]
[Black "Hammarstrom, Ulf"]
[Result "1-0"]
[TimeControl "90 min for 40 move + 30 min with an increment of 30 sec starting move 1"]
[WhiteFideId "1054414"]
[BlackFideId "1710214"]
[WhiteElo "2140"]
[BlackElo "2176"]

1. e4 {[%clk 01:30:58]} {[%emt 00:00:02]} c5 {[%clk 01:26:26]} {[%emt
00:04:34]} 2. Bc4 {[%clk 01:30:57]} {[%emt 00:00:31]} Nf6 {[%clk 01:25:25]}
{[%emt 00:01:32]} 3. e5 {[%clk 01:26:50]} {[%emt 00:04:37]} d5 {[%clk
01:25:04]} {[%emt 00:00:50]} 4. Bb5+ {[%clk 01:24:33]} {[%emt 00:02:48]} Nfd7
{[%clk 01:23:45]} {[%emt 00:01:46]} 5. e6 {[%clk 01:18:29]} {[%emt 00:06:36]}
fxe6 {[%clk 01:23:43]} {[%emt 00:00:33]} 6. Qh5+ {[%clk 01:18:45]} {[%emt
00:00:14]} g6 {[%clk 01:23:58]} {[%emt 00:00:15]} 7. Qe5 {[%clk 01:19:06]}
{[%emt 00:00:08]} Rg8 {[%clk 01:21:14]} {[%emt 00:03:15]} 8. Qxe6 {[%clk
01:19:22]} {[%emt 00:00:13]} Rg7 {[%clk 01:18:42]} {[%emt 00:03:03]} 9. Qxd5
{[%clk 01:17:26]} {[%emt 00:02:25]} e6 {[%clk 01:15:50]} {[%emt 00:03:23]} 10.
Qb3 {[%clk 01:13:43]} {[%emt 00:04:13]} a6 {[%clk 01:14:35]} {[%emt 00:01:45]}
11. Be2 {[%clk 01:13:03]} {[%emt 00:01:10]} Nc6 {[%clk 01:12:04]} {[%emt
00:03:02]} 12. Nf3 {[%clk 01:09:07]} {[%emt 00:04:24]} b5 {[%clk 00:55:22]}
{[%emt 00:17:13]} 13. Qxe6+ {[%clk 01:05:09]} {[%emt 00:04:27]} Re7 {[%clk
00:55:34]} {[%emt 00:00:18]} 14. Qxc6 {[%clk 00:55:06]} {[%emt 00:10:33]} Rb8
{[%clk 00:55:00]} {[%emt 00:01:05]} 15. Kd1 {[%clk 00:53:50]} {[%emt 00:01:45]}
Bb7 {[%clk 00:42:54]} {[%emt 00:12:37]} 16. Qd6 {[%clk 00:54:07]} {[%emt
00:00:12]} Rxe2 {[%clk 00:32:32]} {[%emt 00:10:53]} 17. Qg3 {[%clk 00:53:14]}
{[%emt 00:01:23]} Bxf3 {[%clk 00:26:35]} {[%emt 00:06:27]} 18. Qxf3 {[%clk
00:51:55]} {[%emt 00:01:49]} Re5 {[%clk 00:25:53]} {[%emt 00:01:12]} 19. d3
{[%clk 00:49:11]} {[%emt 00:03:13]} Rb6 {[%clk 00:24:56]} {[%emt 00:01:27]} 20.
Bf4 {[%clk 00:45:59]} {[%emt 00:03:42]} Rf6 {[%clk 00:24:16]} {[%emt 00:01:11]}
21. Qg3 {[%clk 00:45:35]} {[%emt 00:00:53]} Ref5 {[%clk 00:21:26]} {[%emt
00:03:21]} 22. Bg5 {[%clk 00:43:30]} {[%emt 00:02:34]} Bd6 {[%clk 00:20:35]}
{[%emt 00:01:22]} 23. Re1+ {[%clk 00:43:13]} {[%emt 00:00:46]} Kf7 {[%clk
00:20:27]} {[%emt 00:00:38]} 24. Qh4 {[%clk 00:42:00]} {[%emt 00:01:43]} Qh8
{[%clk 00:16:30]} {[%emt 00:04:27]} 25. Nc3 {[%clk 00:37:11]} {[%emt 00:05:19]}
Be5 {[%clk 00:12:18]} {[%emt 00:04:43]} 26. Bxf6 {[%clk 00:35:10]} {[%emt
00:02:30]} Nxf6 {[%clk 00:07:09]} {[%emt 00:05:39]} 27. g4 {[%clk 00:35:15]}
{[%emt 00:00:25]} Bxc3 {[%clk 00:04:05]} {[%emt 00:03:34]} 28. gxf5 {[%clk
00:35:36]} {[%emt 00:00:08]} Bxe1 {[%clk 00:04:15]} {[%emt 00:00:21]} 29. fxg6+
{[%clk 00:35:59]} {[%emt 00:00:07]} Kxg6 {[%clk 00:04:41]} {[%emt 00:00:04]} 30.
Kxe1 {[%clk 00:36:09]} {[%emt 00:00:20]} Qe8+ {[%clk 00:05:06]} {[%emt
00:00:05]} 31. Kd2 {[%clk 00:36:20]} {[%emt 00:00:19]} Qe5 {[%clk 00:05:00]}
{[%emt 00:00:37]} 32. Qg3+ {[%clk 00:36:30]} {[%emt 00:00:19]} 1-0

[Event "Masterklassen 2025"]
[Site "Uppsala, Sweden"]
[Date "2025.07.04"]
[Round "7.4"]
[White "Eriksson, Jorgen"]
[Black "Odell-Johansson, Leo"]
[Result "1-0"]
[TimeControl "90 min for 40 move + 30 min with an increment of 30 sec starting move 1"]
[WhiteFideId "1701967"]
[BlackFideId "1722727"]
[WhiteElo "2160"]
[BlackElo "1991"]

1. d4 {[%clk 01:30:56]} {[%emt 00:00:02]} d5 {[%clk 01:21:30]} {[%emt
00:09:31]} 2. Nf3 {[%clk 01:29:39]} {[%emt 00:01:47]} Nf6 {[%clk 01:20:39]}
{[%emt 00:01:22]} 3. Bf4 {[%clk 01:29:28]} {[%emt 00:00:33]} c5 {[%clk
01:20:43]} {[%emt 00:00:34]} 4. e3 {[%clk 01:29:39]} {[%emt 00:00:18]} e6
{[%clk 01:21:08]} {[%emt 00:00:06]} 5. c3 {[%clk 01:29:25]} {[%emt 00:00:43]}
Nc6 {[%clk 01:21:33]} {[%emt 00:00:05]} 6. Nbd2 {[%clk 01:29:20]} {[%emt
00:00:33]} Nh5 {[%clk 01:21:48]} {[%emt 00:00:17]} 7. Be5 {[%clk 01:25:37]}
{[%emt 00:04:13]} f6 {[%clk 01:21:22]} {[%emt 00:00:55]} 8. Bg3 {[%clk
01:25:29]} {[%emt 00:00:38]} g6 {[%clk 01:21:13]} {[%emt 00:00:41]} 9. Be2
{[%clk 01:13:31]} {[%emt 00:12:27]} Bd7 {[%clk 01:12:18]} {[%emt 00:09:26]} 10.
O-O {[%clk 01:12:47]} {[%emt 00:01:13]} Nxg3 {[%clk 01:12:37]} {[%emt
00:00:11]} 11. hxg3 {[%clk 01:12:59]} {[%emt 00:00:18]} cxd4 {[%clk 01:12:28]}
{[%emt 00:00:39]} 12. exd4 {[%clk 01:12:44]} {[%emt 00:00:45]} Bd6 {[%clk
00:53:33]} {[%emt 00:19:25]} 13. c4 {[%clk 01:11:21]} {[%emt 00:01:53]} dxc4
{[%clk 00:47:07]} {[%emt 00:06:56]} 14. Nxc4 {[%clk 01:03:46]} {[%emt
00:08:05]} Bc7 {[%clk 00:46:19]} {[%emt 00:01:18]} 15. d5 {[%clk 00:43:44]}
{[%emt 00:20:32]} Na5 {[%clk 00:27:15]} {[%emt 00:19:34]} 16. Nxa5 {[%clk
00:37:43]} {[%emt 00:06:31]} Bxa5 {[%clk 00:24:06]} {[%emt 00:03:40]} 17. dxe6
{[%clk 00:36:54]} {[%emt 00:01:18]} Bxe6 {[%clk 00:23:31]} {[%emt 00:01:06]} 18.
Qa4+ {[%clk 00:35:39]} {[%emt 00:01:45]} Kf7 {[%clk 00:21:32]} {[%emt
00:02:29]} 19. Rfd1 {[%clk 00:32:24]} {[%emt 00:03:44]} Qb6 {[%clk 00:21:59]}
{[%emt 00:00:04]} 20. Bc4 {[%clk 00:27:46]} {[%emt 00:05:08]} Bxc4 {[%clk
00:20:00]} {[%emt 00:02:29]} 21. Qxc4+ {[%clk 00:27:56]} {[%emt 00:00:19]} Ke7
{[%clk 00:20:07]} {[%emt 00:00:23]} 22. Qe4+ {[%clk 00:12:46]} {[%emt
00:15:40]} Kf8 {[%clk 00:20:14]} {[%emt 00:00:23]} 23. Rd7 {[%clk 00:11:32]}
{[%emt 00:01:44]} Re8 {[%clk 00:20:07]} {[%emt 00:00:37]} 24. Qd5 {[%clk
00:08:15]} {[%emt 00:03:47]} Re7 {[%clk 00:12:43]} {[%emt 00:07:54]} 25. Rxe7
{[%clk 00:07:59]} {[%emt 00:00:47]} Kxe7 {[%clk 00:13:06]} {[%emt 00:00:06]} 26.
Ng5 {[%clk 00:08:06]} {[%emt 00:00:23]} Rf8 {[%clk 00:11:56]} {[%emt 00:01:40]}
27. Rd1 {[%clk 00:06:28]} {[%emt 00:02:08]} Qc6 {[%clk 00:09:17]} {[%emt
00:03:09]} 28. Qxa5 {[%clk 00:05:40]} {[%emt 00:01:18]} fxg5 {[%clk 00:09:33]}
{[%emt 00:00:13]} 29. Qxg5+ {[%clk 00:05:09]} {[%emt 00:01:02]} Kf7 {[%clk
00:07:46]} {[%emt 00:02:17]} 30. Rd4 {[%clk 00:02:30]} {[%emt 00:03:09]} Re8
{[%clk 00:07:21]} {[%emt 00:00:54]} 31. Qd5+ {[%clk 00:01:15]} {[%emt
00:01:46]} Qxd5 {[%clk 00:07:15]} {[%emt 00:00:37]} 32. Rxd5 {[%clk 00:01:43]}
{[%emt 00:00:01]} Re1+ {[%clk 00:06:28]} {[%emt 00:01:16]} 33. Kh2 {[%clk
00:02:09]} {[%emt 00:00:04]} Ke6 {[%clk 00:06:28]} {[%emt 00:00:30]} 34. Rd2
{[%clk 00:02:23]} {[%emt 00:00:17]} h5 {[%clk 00:05:21]} {[%emt 00:01:37]} 35.
f3 {[%clk 00:01:42]} {[%emt 00:01:11]} b6 {[%clk 00:04:32]} {[%emt 00:01:19]}
36. Rd3 {[%clk 00:00:54]} {[%emt 00:01:18]} Re2 {[%clk 00:03:42]} {[%emt
00:01:20]} 37. Ra3 {[%clk 00:00:46]} {[%emt 00:00:38]} Rxb2 {[%clk 00:03:05]}
{[%emt 00:01:07]} 38. Rxa7 {[%clk 00:01:10]} {[%emt 00:00:06]} Kd5 {[%clk
00:01:17]} {[%emt 00:02:18]} 39. a4 {[%clk 00:00:49]} {[%emt 00:00:51]} Ra2
{[%clk 00:01:30]} {[%emt 00:00:17]} 40. Kh3 {[%clk 00:00:43]} {[%emt 00:00:36]}
Ra1 {[%clk 00:00:43]} {[%emt 00:01:17]} 41. g4 {[%clk 00:21:46]} {[%emt
00:09:27]} Ke5 {[%clk 00:07:31]} {[%emt 00:23:42]} 42. gxh5 {[%clk 00:17:02]}
{[%emt 00:05:14]} gxh5 {[%clk 00:06:51]} {[%emt 00:01:11]} 43. Re7+ {[%clk
00:06:17]} {[%emt 00:11:14]} Kf5 {[%clk 00:06:23]} {[%emt 00:00:58]} 44. Re4
{[%clk 00:05:31]} {[%emt 00:01:17]} Rb1 {[%clk 00:06:43]} {[%emt 00:00:09]} 45.
Rh4 {[%clk 00:04:57]} {[%emt 00:01:03]} Kg5 {[%clk 00:06:43]} {[%emt 00:00:30]}
46. Rd4 {[%clk 00:05:18]} {[%emt 00:00:10]} Rh1+ {[%clk 00:04:29]} {[%emt
00:02:44]} 47. Kg3 {[%clk 00:05:43]} {[%emt 00:00:06]} Rb1 {[%clk 00:04:52]}
{[%emt 00:00:06]} 48. Rd5+ {[%clk 00:05:49]} {[%emt 00:00:24]} Kg6 {[%clk
00:05:13]} {[%emt 00:00:08]} 49. Rb5 {[%clk 00:06:06]} {[%emt 00:00:14]} Ra1
{[%clk 00:03:47]} {[%emt 00:01:57]} 50. Rxb6+ {[%clk 00:06:27]} {[%emt
00:00:08]} Kf5 {[%clk 00:03:48]} {[%emt 00:00:26]} 51. Rb5+ {[%clk 00:06:38]}
{[%emt 00:00:22]} Kg6 {[%clk 00:04:08]} {[%emt 00:00:09]} 52. Ra5 {[%clk
00:05:54]} {[%emt 00:01:15]} Kh6 {[%clk 00:04:15]} {[%emt 00:00:23]} 53. Kf4
{[%clk 00:05:50]} {[%emt 00:00:34]} Ra2 {[%clk 00:04:02]} {[%emt 00:00:44]} 54.
Ra6+ {[%clk 00:05:51]} {[%emt 00:00:29]} Kg7 {[%clk 00:04:23]} {[%emt
00:00:07]} 55. g3 {[%clk 00:04:12]} {[%emt 00:02:11]} Re2 {[%clk 00:03:33]}
{[%emt 00:01:19]} 56. Kg5 {[%clk 00:03:42]} {[%emt 00:00:59]} Re3 {[%clk
00:03:40]} {[%emt 00:00:23]} 57. Ra7+ {[%clk 00:03:59]} {[%emt 00:00:14]} Kf8
{[%clk 00:03:57]} {[%emt 00:00:12]} 58. Kf4 {[%clk 00:04:00]} {[%emt 00:00:30]}
Ra3 {[%clk 00:04:10]} {[%emt 00:00:17]} 59. Ra5 {[%clk 00:03:53]} {[%emt
00:00:38]} Kf7 {[%clk 00:04:00]} {[%emt 00:00:40]} 60. Rxh5 {[%clk 00:03:55]}
{[%emt 00:00:26]} Rxa4+ {[%clk 00:04:25]} {[%emt 00:00:06]} 61. Kf5 {[%clk
00:04:03]} {[%emt 00:00:22]} Ra3 {[%clk 00:04:27]} {[%emt 00:00:28]} 62. Kg4
{[%clk 00:04:23]} {[%emt 00:00:10]} Kg6 {[%clk 00:04:47]} {[%emt 00:00:10]} 63.
Rb5 {[%clk 00:04:41]} {[%emt 00:00:12]} Ra6 {[%clk 00:04:59]} {[%emt 00:00:18]}
64. f4 {[%clk 00:04:55]} {[%emt 00:00:16]} Kg7 {[%clk 00:04:45]} {[%emt
00:00:43]} 65. Rb7+ {[%clk 00:02:47]} {[%emt 00:02:39]} Kf6 {[%clk 00:05:08]}
{[%emt 00:00:06]} 66. Kh4 {[%clk 00:02:17]} {[%emt 00:01:01]} Kf5 {[%clk
00:05:09]} {[%emt 00:00:29]} 67. Rb5+ {[%clk 00:01:43]} {[%emt 00:01:03]} Kf6
{[%clk 00:05:18]} {[%emt 00:00:22]} 68. g4 {[%clk 00:01:58]} {[%emt 00:00:16]}
Ra1 {[%clk 00:04:32]} {[%emt 00:01:16]} 69. Rb6+ {[%clk 00:02:19]} {[%emt
00:00:09]} Kf7 {[%clk 00:04:44]} {[%emt 00:00:17]} 70. Kh5 {[%clk 00:02:12]}
{[%emt 00:00:37]} 1-0